fUSD/lending_fUSD_20240317
["ID","MTS","AMOUNT","RATE_DAILY","PERIOD"]
[319344620,1710683442639,-587.88010495,0.000189,2]
[319344621,1710683442649,-587.88010495,0.000189,2]
[319344623,1710683442658,-587.88010495,0.000189,2]
[319344625,1710683442667,-587.88010495,0.000189,2]
[319344626,1710683442677,-587.88010495,0.000189,2]
[319344628,1710683442686,-587.88010495,0.000189,2]
[319344629,1710683442695,-587.88010495,0.000189,2]
[319344631,1710683442704,-1000.0,0.000189,2]
[319344632,1710683442714,-2510.0735352,0.000189,2]
[319344633,1710683442723,-483.0,0.00018904,2]
[319344635,1710683442732,-474.0,0.00018904,2]
[319344636,1710683442742,-383.73,0.00018912,2]
[319344637,1710683442751,-500.0,0.00018921,2]
[319344638,1710683442760,-483.0,0.00018932,2]
[319344639,1710683442769,-474.0,0.00018932,2]
[319344640,1710683442779,-152.44062331,0.00018938,2]
[319344641,1710683442788,-487.0,0.00018959,2]
[319344643,1710683442797,-484.0,0.00018959,2]
[319344645,1710683442807,-175.307072,0.00018966,2]
[319344646,1710683442816,-2856.35054609,0.00018984,3]
[319344648,1710683442827,-423.29000924,0.00018986,2]
[319344650,1710683442836,-244.16305139,0.00018989,2]
[319344651,1710683442846,-110263.4792307,0.00018994,2]
[319344652,1710683442855,-221.1911357,0.00018994,2]
[319344653,1710683442864,-891.0026799,0.00018994,2]
[319344654,1710683442873,-1952.2637261,0.00018994,2]
[319344655,1710683442882,-155.51784382,0.00018996,2]
[319344656,1710683442892,-1860.28655469,0.00018997,2]
[319344657,1710683442901,-703.78633426,0.00018997,2]
[319344658,1710683442911,-2341.79461688,0.00018997,2]
[319344659,1710683442921,-1208.24,0.00018997,2]
[319344660,1710683442930,-155.0,0.00018998,2]
[319344661,1710683442940,-200.74122027,0.00018998,2]
[319344662,1710683442949,-155.0,0.00018998,2]
[319344663,1710683442958,-155.0,0.00018998,2]
[319344664,1710683442967,-3060.38498379,0.00018998,2]
[319344665,1710683442977,-357.96365984,0.00018998,2]
[319344666,1710683442986,-155.0,0.00018998,2]
[319344667,1710683442996,-3967.39244542,0.00018998,2]
[319344668,1710683443005,-1634.3033,0.00018998,2]
[319344669,1710683443014,-10426.49285854,0.00018998,2]
[319344670,1710683443023,-212.8531606,0.00018998,2]
[319344671,1710683443032,-971.8627423,0.00018998,2]
[319344672,1710683443042,-3077.0559349,0.00018998,2]
[319344673,1710683443051,-155.44120582,0.00018998,2]
[319344674,1710683443061,-348.6196633,0.00018998,2]
[319344675,1710683443070,-180.87611207,0.00018998,2]
[319344676,1710683443079,-235.74906193,0.00018998,2]
[319344677,1710683443088,-177.76629921,0.00018998,2]
[319344678,1710683443097,-2279.37102954,0.00018998,2]
[319344679,1710683443106,-155.0,0.00018998,2]
[319344680,1710683443116,-18372.73929577,0.00018998,2]
[319344681,1710683443125,-1197.5618697,0.00018998,2]
[319344682,1710683443135,-403.16490791,0.00018998,2]
[319344683,1710683443144,-3941.02066887,0.00018998,2]
[319344684,1710683443159,-163.97309913,0.00018998,2]
[319344685,1710683443168,-658.63215977,0.00018998,2]
[319344686,1710683443177,-225.9775041,0.00018998,2]
[319344687,1710683443188,-1472.20126626,0.00018998,2]
[319344688,1710683443198,-698.91646599,0.00018998,2]
[319344690,1710683443210,-85.7168335,0.00018998,2]
[319344691,1710683443219,-1583.92492185,0.00018998,2]
[319344692,1710683443229,-245.86268023,0.00018998,2]
[319344693,1710683443238,-1399.72861742,0.00018998,2]
[319344695,1710683443413,-1003.86832121,0.00018998,2]
[319344696,1710683443425,-5940.95590941,0.00018998,2]
[319344697,1710683443443,-7598.51024086,0.00018998,2]
[319344698,1710683443453,-276.72427776,0.00018998,2]
[319344699,1710683443462,-164.87044309,0.00018998,2]
[319344700,1710683443472,-155.00005482,0.00018998,2]
[319344701,1710683443483,-231.25397348,0.00018998,2]
[319344702,1710683443492,-494.87567539,0.00018998,2]
[319344703,1710683443502,-483.89332562,0.00018998,2]
[319344704,1710683443511,-446.59312437,0.00018998,2]
[319344705,1710683443520,-214.10792536,0.00018998,2]
[319344706,1710683443529,-272.10455198,0.00018998,2]
[319344707,1710683443539,-1052.06896339,0.00018998,2]
[319344708,1710683443548,-203.78278256,0.00018998,2]
[319344709,1710683443557,-400.0,0.00018998,2]
[319344710,1710683443567,-205.08560438,0.00018999,2]
[319344711,1710683443579,-5002.53230386,0.00018999,2]
[319344712,1710683443588,-1208.24,0.00018999,2]
[319344713,1710683443598,-1208.24,0.00018999,2]
[319344714,1710683443607,-1208.24,0.00018999,2]
[319344715,1710683443617,-171.07395108,0.00018999,2]
[319344716,1710683443632,-1037.16604892,0.00018999,2]
[319344717,1710683443642,-1208.24,0.00018999,2]
[319344718,1710683443651,-1208.24,0.00018999,2]
[319344719,1710683443660,-1208.42147001,0.00018999,2]
[319344720,1710683443669,-1322.81250107,0.00019,2]
[319344721,1710683443681,-10764.71399953,0.00019,2]
[319344722,1710683443692,-4072.05527481,0.00019,2]
[319344723,1710683443708,-2559.2,0.00019,2]
[319344740,1710683445858,-157.9554901,0.00018899,2]
[319344743,1710683445868,-175.74765064,0.00018899,2]
[319344745,1710683445880,-224.25234936,0.00018899,2]
[319344747,1710683445889,-71.00279199,0.00018899,2]
[319344750,1710683445901,-83.99720801,0.00018899,2]
[319344752,1710683445910,-883.91043063,0.00018994,2]
[319344754,1710683445921,-638.60186399,0.00018994,2]
[319344756,1710683445937,-276.90558802,0.00018994,2]
[319344760,1710683445965,-76905.11347476,0.00018994,2]
[319344762,1710683445974,-1326.00194876,0.00019,2]
[319344778,1710683446128,-23699.89922496,0.00019,2]
[319344779,1710683446140,-46760.24341225,0.00019,2]
[319344781,1710683446151,-9325.38772,0.00019,2]
[319344784,1710683446162,-6167.32949532,0.00019,2]
[319344786,1710683446174,-2826.38567684,0.00019,2]
[319344789,1710683446190,-586.64813326,0.00019,2]
[319344791,1710683446201,-16525.57278363,0.00019,2]
[319344793,1710683446213,-500.0,0.00019,2]
[319344795,1710683446224,-1395.9160301,0.00019,2]
[319344798,1710683446235,-11125.71470615,0.00019,2]
[319344800,1710683446245,-456.60980219,0.00019,2]
[319344802,1710683446256,-264.208,0.00019,2]
[319344805,1710683446272,-611.705515,0.00019,2]
[319344807,1710683446287,-265.293501,0.00019,2]
[319344810,1710683446299,-3255.30993903,0.00019,2]
[319344812,1710683446309,-1108.87164166,0.00019,2]
[319344814,1710683446320,-2309.596958,0.00019,2]
[319344889,1710683761724,-198.84066801,0.00014999,2]
[319344890,1710683785945,-22684.3744197,0.00015,2]
[319344891,1710683806253,1002.0,0.000231,120]
[319344942,1710684119277,-150.9,0.0001546,2]
[319344943,1710684119514,-152.33,0.00015465,2]
[319344944,1710684119533,-22171.57421229,0.0001547,2]
[319344945,1710684119553,-170967.19578771,0.0001548,2]
[319344946,1710684185093,-405.96324163,0.00015016,2]
[319344947,1710684185115,-200.0,0.00015403,2]
[319344948,1710684185137,-198.84066801,0.00015479,2]
[319344949,1710684185161,-150.0,0.00015479,2]
[319344950,1710684185183,-54329.19609036,0.0001548,2]
[319344951,1710684235948,-405.67986746,0.00015016,2]
[319344952,1710684235971,-1000.0,0.00015479,2]
[319344953,1710684236000,-36707.32013254,0.00015479,2]
[319344961,1710684632192,-307.53818908,0.00014899,2]
[319344962,1710684632205,-227.70497184,0.00014899,2]
[319344963,1710684632215,-1313.17393523,0.000149,2]
[319344964,1710684632225,-550.0,0.00015,3]
[319344965,1710684632236,-742.96,0.00015253,2]
[319344966,1710684632245,-160.15690147,0.0001538,2]
[319344967,1710684632255,-500.03910027,0.00015399,2]
[319344968,1710684632265,-769.40841776,0.000154,2]
[319344969,1710684632278,-300.0,0.00015478,2]
[319344970,1710684632288,-150.0,0.00015478,2]
[319344971,1710684632297,-3083.80413379,0.00015479,2]
[319344972,1710684632323,-2610.63779537,0.00015479,2]
[319344973,1710684632335,-714.323337,0.00015479,2]
[319344974,1710684632346,-4144.26708576,0.00015479,2]
[319344975,1710684632357,-2537.01606387,0.00015479,2]
[319344976,1710684632373,-880.92132683,0.00015479,2]
[319344977,1710684632384,-1681.33970665,0.0001548,2]
[319344978,1710684632397,-7387.6558261,0.0001548,2]
[319344979,1710684632409,-1873.18078951,0.0001548,2]
[319344980,1710684632421,-986.46397527,0.0001548,2]
[319344994,1710684638022,-2607.49196552,0.0001548,2]
[319344995,1710684638034,-1508.19605205,0.0001548,2]
[319344996,1710684638136,-561.88571998,0.0001548,2]
[319344997,1710684638251,-300.32,0.0001548,2]
[319344998,1710684638310,-7921.15103609,0.0001548,2]
[319344999,1710684638371,-6700.0,0.0001548,2]
[319345004,1710684640082,-162445.96404389,0.0001548,2]
[319345005,1710684640091,-180.986828,0.00015838,2]
[319345006,1710684640102,-180.986828,0.00015838,2]
[319345007,1710684640111,-180.986828,0.00015838,2]
[319345008,1710684640120,-180.986828,0.0001663,2]
[319345009,1710684640130,-180.986828,0.0001663,2]
[319345010,1710684640139,-180.986828,0.0001663,2]
[319345011,1710684640148,-150.99,0.0001663,2]
[319345012,1710684640157,-186.58,0.0001663,2]
[319345013,1710684640167,-499.99,0.0001663,2]
[319345014,1710684640176,-1500.0,0.00016848,4]
[319345015,1710684640186,-3465.46,0.00016872,2]
[319345016,1710684640195,-150.0,0.00016911,2]
[319345017,1710684640204,-485.83,0.00016933,2]
[319345018,1710684640214,-600.0,0.00017,3]
[319345019,1710684640223,-540.0,0.00017026,2]
[319345020,1710684640233,-2693.73,0.00017035,2]
[319345021,1710684640242,-363.99,0.00017035,2]
[319345022,1710684640253,-767.9,0.00017049,2]
[319345023,1710684640263,-1276.39,0.00017067,2]
[319345024,1710684640273,-363.99,0.00017098,2]
[319345025,1710684640282,-746.33665963,0.00017098,2]
[319345026,1710684640291,-1682.69,0.00017098,2]
[319345027,1710684640300,-250.0,0.00017104,2]
[319345028,1710684640312,-315.85,0.00017139,2]
[319345029,1710684640322,-363.99,0.00017161,2]
[319345030,1710684640332,-363.99,0.00017223,2]
[319345031,1710684640341,-155.99355924,0.00017226,2]
[319345032,1710684640351,-152.23725879,0.00017227,2]
[319345033,1710684640361,-200.0,0.00017254,2]
[319345034,1710684640371,-155.99355924,0.00017275,2]
[319345035,1710684640380,-250.0,0.0001728,2]
[319345036,1710684640389,-363.99,0.00017286,2]
[319345037,1710684640398,-155.99355924,0.00017303,2]
[319345038,1710684640407,-363.99,0.00017349,2]
[319345039,1710684640416,-23900.0,0.00017356,2]
[319345040,1710684640426,-232.1,0.00017405,2]
[319345041,1710684640435,-363.99,0.00017412,2]
[319345042,1710684640444,-163.16,0.00017444,2]
[319345043,1710684640454,-155.99355924,0.00017452,2]
[319345044,1710684640463,-363.99,0.00017474,2]
[319345049,1710684640679,-742.96,0.00017516,2]
[319345050,1710684640689,-363.99,0.00017537,2]
[319345051,1710684640699,-540.63,0.00017553,2]
[319345052,1710684640710,-299.99,0.00017553,4]
[319345053,1710684640720,-152.23725879,0.00017579,2]
[319345054,1710684640730,-363.99,0.000176,2]
[319345055,1710684640739,-363.99,0.00017663,2]
[319345056,1710684640749,-163.16,0.00017671,2]
[319345057,1710684640758,-363.99,0.00017725,2]
[319345058,1710684640768,-363.99,0.00017788,2]
[319345059,1710684640778,-155.99355924,0.00017806,2]
[319345060,1710684640790,-167.0,0.00017848,2]
[319345061,1710684640799,-363.99,0.00017851,2]
[319345062,1710684640811,-245.67548674,0.00017858,2]
[319345063,1710684640821,-3909.90247684,0.0001788,2]
[319345064,1710684640832,-500.0,0.0001789,2]
[319345065,1710684640843,-163.16,0.00017898,2]
[319345066,1710684640854,-687.6047,0.000179,2]
[319345067,1710684640866,-363.99,0.00017914,2]
[319345068,1710684640877,-363.99,0.00017977,2]
[319345069,1710684640888,-5060.5490181,0.00017987,2]
[319345070,1710684640898,-4521.62249869,0.00018,2]
[319345071,1710684640909,-167.0,0.00018033,2]
[319345072,1710684640919,-363.99,0.00018039,2]
[319345073,1710684640928,-363.99,0.00018102,2]
[319345074,1710684640938,-163.16,0.00018126,2]
[319345075,1710684640948,-253.42,0.00018127,2]
[319345076,1710684640958,-155.99355924,0.00018144,2]
[319345077,1710684640968,-153.01160755,0.00018146,2]
[319345078,1710684640978,-363.99,0.00018165,2]
[319345079,1710684640988,-150.21260499,0.00018167,2]
[319345080,1710684640998,-2500.0,0.00018214,2]
[319345081,1710684641007,-363.99,0.00018228,2]
[319345082,1710684641017,-154.5275948,0.00018342,2]
[319345083,1710684641027,-163.16,0.00018353,2]
[319345084,1710684641038,-524.0,0.000184,2]
[319345085,1710684641048,-225.0,0.00018468,2]
[319345086,1710684641058,-155.99355924,0.00018494,2]
[319345087,1710684641068,-152.23725879,0.00018549,2]
[319345088,1710684641077,-150.21260499,0.00018584,2]
[319345089,1710684641087,-1400.0,0.00018591,2]
[319345090,1710684641096,-800.0,0.00018603,2]
[319345091,1710684641106,-187.65226186,0.0001863,2]
[319345092,1710684641115,-97.34318417,0.0001863,2]
[319345093,1710684641128,-263.16,0.0001863,2]
[319345094,1710684641141,-139.49681583,0.0001863,2]
[319345095,1710684641151,-500.0,0.0001863,2]
[319345096,1710684641161,-500.0,0.0001863,2]
[319345097,1710684641170,-500.0,0.0001863,2]
[319345098,1710684641180,-500.0,0.0001863,2]
[319345099,1710684641190,-500.0,0.0001863,2]
[319345100,1710684641200,-500.0,0.0001863,2]
[319345101,1710684641209,-500.0,0.0001863,2]
[319345102,1710684641221,-500.0,0.0001863,2]
[319345103,1710684641231,-500.0,0.0001863,2]
[319345104,1710684641241,-500.0,0.0001863,2]
[319345105,1710684641251,-500.0,0.0001863,2]
[319345106,1710684641261,-250.611296,0.0001863,2]
[319345107,1710684641270,-152.23725879,0.0001872,2]
[319345108,1710684641279,-157.8277529,0.00018722,2]
[319345109,1710684641288,-155.99355924,0.00018726,2]
[319345110,1710684641297,-437.0,0.00018728,2]
[319345111,1710684641308,-2500.0,0.00018752,2]
[319345112,1710684641318,-150.0,0.000188,2]
[319345113,1710684641327,-150.0,0.00018821,2]
[319345114,1710684641336,-152.23725879,0.00018868,2]
[319345115,1710684641345,-14223.74606245,0.00018887,2]
[319345116,1710684641357,-20625.32595336,0.00018887,2]
[319345117,1710684641366,-239.84,0.00018899,2]
[319345118,1710684641377,-500.0,0.00018899,2]
[319345119,1710684641386,-269.72,0.00018899,2]
[319345120,1710684641395,-4459.20732375,0.000189,2]
[319345121,1710684641405,-322.51234141,0.000189,2]
[319345122,1710684641415,-175.01547757,0.000189,2]
[319345123,1710684641424,-175.01547755,0.000189,2]
[319345124,1710684641434,-175.01547755,0.000189,2]
[319345125,1710684641444,-151.45421479,0.00018986,2]
[319345126,1710684641453,-1028.55200717,0.0001899,2]
[319345127,1710684641462,-1096.0817968,0.00018994,2]
[319345128,1710684641471,-2401.6097603,0.00018994,2]
[319345129,1710684641480,-512.9165786,0.00018994,2]
[319345130,1710684641489,-40679.2810212,0.00018994,2]
[319345131,1710684641501,-678.98981162,0.00018998,2]
[319345132,1710684641510,-1052.77885115,0.00018998,2]
[319345133,1710684641520,-4666.20822005,0.00018998,2]
[319345134,1710684641529,-166.0502098,0.00018998,2]
[319345135,1710684641538,-155.04446236,0.00018998,2]
[319345136,1710684641547,-155.18668923,0.00018998,2]
[319345137,1710684641557,-4026.68148484,0.00018998,2]
[319345138,1710684641566,-204.36733547,0.00018998,2]
[319345139,1710684641575,-276.89395026,0.00018998,2]
[319345140,1710684641585,-231.85009635,0.00018998,2]
[319345141,1710684641594,-155.0,0.00018998,2]
[319345142,1710684641603,-309.69190489,0.00018998,2]
[319345143,1710684641613,-234.87052309,0.00018998,2]
[319345144,1710684641622,-3144.51534564,0.00018998,2]
[319345145,1710684641631,-204.84570995,0.00018998,2]
[319345146,1710684641641,-782.55058005,0.00018998,2]
[319345147,1710684641650,-155.0,0.00018998,2]
[319345148,1710684641660,-368.44927399,0.00018998,2]
[319345149,1710684641670,-155.0,0.00018998,2]
[319345150,1710684641680,-1216.46329409,0.00018998,2]
[319345151,1710684641689,-332.87392543,0.00018998,2]
[319345152,1710684641699,-709.83919954,0.00018999,2]
[319345153,1710684641709,-2972.58721165,0.00018999,2]
[319345154,1710684641718,-2489.45155704,0.00018999,2]
[319345155,1710684641728,-484.69515025,0.00018999,2]
[319345156,1710684641738,-444.7076028,0.00018999,2]
[319345157,1710684641749,-155.0,0.00018999,2]
[319345158,1710684641759,-158.04643056,0.00018999,2]
[319345159,1710684641769,-205.17613439,0.00018999,2]
[319345160,1710684641783,-2488.42520557,0.00018999,2]
[319345161,1710684641793,-155.0,0.00018999,2]
[319345162,1710684641803,-1390.14092364,0.00018999,2]
[319345163,1710684641822,-500.0,0.00018999,2]
[319345164,1710684641832,-500.0,0.00018999,2]
[319345165,1710684641842,-500.0,0.00018999,2]
[319345166,1710684641853,-206.76089063,0.00018999,2]
[319345167,1710684641864,-500.0,0.00018999,2]
[319345168,1710684641873,-500.0,0.00018999,2]
[319345169,1710684641882,-500.0,0.00018999,2]
[319345170,1710684641894,-500.0,0.00018999,2]
[319345171,1710684641903,-500.0,0.00018999,2]
[319345172,1710684641913,-500.0,0.00018999,2]
[319345173,1710684641923,-500.0,0.00018999,2]
[319345174,1710684641933,-500.0,0.00018999,2]
[319345175,1710684641943,-500.0,0.00018999,2]
[319345176,1710684641952,-500.0,0.00018999,2]
[319345177,1710684641961,-500.0,0.00018999,2]
[319345178,1710684641970,-500.0,0.00018999,2]
[319345179,1710684641980,-203.24018009,0.00018999,2]
[319345180,1710684641990,-18305.67041553,0.00019,2]
[319345181,1710684642006,-564.85647959,0.00019,2]
[319345182,1710684642018,-1734.51170768,0.00019,2]
[319345183,1710684642029,-273.7432171,0.00019,2]
[319345184,1710684642059,-3978.74159999,0.00019,2]
[319345206,1710684643173,-175.01547755,0.000189,2]
[319345207,1710684643182,-3682.27258435,0.00019,2]
[319345208,1710684643194,-538.79284284,0.00019,2]
[319345209,1710684643291,-569.85819587,0.00019,2]
[319345210,1710684643350,-4347.22446963,0.00019,2]
[319345211,1710684643411,-1990.05821178,0.00019,2]
[319345212,1710684643422,-3527.22231656,0.00019,2]
[319345219,1710684646107,-599.27979208,0.00019,2]
[319345220,1710684646233,-12651.933375,0.00019,2]
[319345221,1710684646245,-5015.26599848,0.00019,2]
[319345222,1710684646301,-373.81422416,0.00018999,2]
[319345223,1710684646313,-337474.2779579,0.00019,2]
[319345224,1710684646374,-568.01932245,0.00019,2]
[319345235,1710685342517,194.54309611,0.0001,2]
[319345238,1710685770377,-600.0,0.00015344,2]
[319345242,1710685832202,-789.29286824,0.00015232,2]
[319345243,1710685832214,-1374.24877962,0.00015232,2]
[319345244,1710685832224,-668.66,0.00015233,2]
[319345245,1710685832236,-4750.53346211,0.00015344,2]
[319345246,1710685832246,-152.34,0.00015855,2]
[319345247,1710685832256,-151.0,0.00015859,2]
[319345248,1710685832266,-150.5,0.00015862,2]
[319345249,1710685832277,-152.67,0.00015867,2]
[319345250,1710685832287,-139.76376238,0.0001587,2]
[319345251,1710685832299,-4554.28658527,0.0001587,2]
[319345252,1710685832308,-5800.0,0.0001599,2]
[319345253,1710685832318,-5800.0,0.00015999,2]
[319345254,1710685832328,-200.82,0.00015999,2]
[319345255,1710685832337,-161.78,0.00017068,2]
[319345256,1710685832349,-250.0,0.00017097,2]
[319345257,1710685832358,-23900.0,0.0001714,2]
[319345258,1710685832369,-200.0,0.00017147,2]
[319345259,1710685832379,-2309.63,0.00017185,2]
[319345260,1710685832388,-150.0,0.00017251,2]
[319345261,1710685832398,-150.99,0.00017293,2]
[319345262,1710685832407,-151.4542148,0.00017351,2]
[319345263,1710685832418,-242.91,0.00017372,2]
[319345264,1710685832431,-202.73,0.00017406,2]
[319345265,1710685832441,-614.32,0.00017415,2]
[319345266,1710685832451,-250.0,0.00017421,2]
[319345267,1710685832462,-152.23725879,0.00017454,2]
[319345268,1710685832472,-668.66,0.00017496,2]
[319345269,1710685832483,-385.68,0.00017579,2]
[319345270,1710685832492,-155.71899126,0.00017686,2]
[319345271,1710685832502,-155.66,0.00017719,2]
[319345272,1710685832513,-1036.98,0.00017728,2]
[319345273,1710685832523,-29999.99,0.00017728,2]
[319345274,1710685832533,-828.1,0.00017728,2]
[319345275,1710685832543,-6687.29,0.00017728,2]
[319345276,1710685832554,-799.03,0.00017728,2]
[319345277,1710685832565,-150.80584848,0.00017863,2]
[319345279,1710685832576,-299.99,0.00018004,4]
[319345281,1710685832587,-13417.569,0.00018004,2]
[319345283,1710685832597,-156.01973643,0.00018021,2]
[319345285,1710685832607,-153.01160755,0.00018066,2]
[319345287,1710685832618,-155.99355924,0.00018089,2]
[319345289,1710685832629,-922.44,0.00018141,2]
[319345291,1710685832638,-922.44,0.00018141,2]
[319345293,1710685832650,-922.44,0.00018141,2]
[319345295,1710685832660,-922.44,0.00018141,2]
[319345297,1710685832670,-922.44,0.00018141,2]
[319345299,1710685832680,-922.44,0.00018141,2]
[319345301,1710685832690,-922.44,0.00018141,2]
[319345303,1710685832700,-922.44,0.00018141,2]
[319345305,1710685832710,-300.0,0.00018168,2]
[319345307,1710685832721,-166.66666667,0.00018354,2]
[319345309,1710685832731,-1468.0,0.000185,2]
[319345311,1710685832742,-7204.70750719,0.0001857,2]
[319345313,1710685832752,-283.34,0.00018598,2]
[319345315,1710685832762,-1032.0,0.00018629,2]
[319345317,1710685832773,-300.0,0.00018629,2]
[319345319,1710685832784,-303.02,0.00018629,2]
[319345321,1710685832795,-155.99355924,0.00018693,2]
[319345323,1710685832806,-152.23725879,0.00018695,2]
[319345325,1710685832816,-167.0,0.00018698,2]
[319345327,1710685832827,-151.4542148,0.00018793,2]
[319345329,1710685832838,-4591.3302,0.000188,2]
[319345331,1710685832848,-772.66144361,0.000188,2]
[319345333,1710685832859,-772.66144358,0.00018814,2]
[319345335,1710685832869,-772.66144358,0.00018829,2]
[319345337,1710685832879,-772.66144358,0.00018843,2]
[319345338,1710685832890,-200.0,0.00018847,2]
[319345339,1710685832900,-200.0,0.00018848,2]
[319345340,1710685832912,-200.0,0.00018848,2]
[319345341,1710685832922,-800.0,0.00018848,2]
[319345342,1710685832932,-200.0,0.00018848,2]
[319345343,1710685832943,-200.0,0.00018848,2]
[319345344,1710685832953,-200.0,0.00018848,2]
[319345345,1710685832964,-500.0,0.00018848,2]
[319345346,1710685832974,-200.0,0.00018848,2]
[319345347,1710685832985,-772.66144358,0.00018857,2]
[319345348,1710685832995,-772.66144358,0.00018871,2]
[319345349,1710685833009,-1239.25124011,0.00018877,2]
[319345350,1710685833019,-772.66144358,0.00018886,2]
[319345351,1710685833029,-1000.0,0.00018894,2]
[319345352,1710685833039,-3738.7291,0.00018899,2]
[319345353,1710685833049,-216.44528974,0.00018899,2]
[319345354,1710685833060,-1977.29128626,0.000189,2]
[319345355,1710685833072,-21407.2745,0.000189,2]
[319345356,1710685833083,-13934.0403,0.000189,2]
[319345357,1710685833094,-3469.3223,0.000189,2]
[319345358,1710685833104,-1581.0486,0.000189,2]
[319345359,1710685833114,-31023.2489,0.000189,2]
[319345360,1710685833124,-185.38153135,0.000189,2]
[319345361,1710685833134,-124332.5824182,0.000189,2]
[319345362,1710685833145,-2084.81620447,0.000189,2]
[319345363,1710685833156,-2540.01201612,0.000189,2]
[319345364,1710685833176,-2459.98798388,0.000189,2]
[319345365,1710685833190,-772.66144358,0.000189,2]
[319345366,1710685833199,-59.87710784,0.000189,2]
[319345367,1710685833225,-630.20060201,0.000189,2]
[319345368,1710685833249,-69.67535959,0.000189,2]
[319345369,1710685833259,-882.41517024,0.000189,2]
[319345370,1710685833271,-163.4841795,0.00018904,2]
[319345371,1710685833284,-96.1904285,0.00018904,2]
[319345372,1710685833295,-1400.0,0.00018909,2]
[319345373,1710685833305,-175.613704,0.00018966,2]
[319345374,1710685833315,-174.469426,0.00018966,2]
[319345375,1710685833324,-1874.97832309,0.00018982,3]
[319345376,1710685833336,-430.942,0.00018982,3]
[319345377,1710685833348,-789.81875351,0.00018982,3]
[319345380,1710685838245,-36552.7921032,0.00018982,3]
[319345381,1710685838255,-5300.0,0.0001899,24]
[319345382,1710685838266,-1100.0,0.0001899,9]
[319345383,1710685838277,-2189.7587125,0.00018994,2]
[319345384,1710685838286,-22857.44918431,0.00018994,2]
[319345385,1710685838307,-361.28,0.00018994,2]
[319345391,1710685840215,-13872.14690349,0.00018994,2]
[319345392,1710685840225,-1467.0652448,0.00018994,2]
[319345393,1710685840246,-5587.9402986,0.00018994,2]
[319345394,1710685840256,-155.0,0.00018998,2]
[319345395,1710685840267,-1585.05895151,0.00018998,2]
[319345396,1710685840277,-155.0,0.00018998,2]
[319345397,1710685840288,-4300.76140114,0.00018998,2]
[319345398,1710685840297,-164.87044309,0.00018998,2]
[319345399,1710685840306,-875.31837496,0.00018998,2]
[319345400,1710685840316,-2180.2608723,0.00018998,2]
[319345401,1710685840325,-373.08421702,0.00018998,2]
[319345402,1710685840334,-328.46711603,0.00018998,2]
[319345403,1710685840344,-155.0,0.00018998,2]
[319345404,1710685840354,-7900.1322949,0.00018998,2]
[319345405,1710685840365,-252.23171098,0.00018998,2]
[319345406,1710685840374,-285.71416057,0.00018998,5]
[319345407,1710685840383,-160.36514205,0.00018998,2]
[319345408,1710685840394,-220.75350523,0.00018998,2]
[319345409,1710685840403,-778.45096994,0.00018998,2]
[319345410,1710685840413,-190.51767373,0.00018998,2]
[319345411,1710685840423,-658.63215977,0.00018999,2]
[319345412,1710685840433,-3465.47487913,0.00018999,2]
[319345413,1710685840443,-155.0,0.00018999,2]
[319345414,1710685840453,-10426.49285854,0.00018999,2]
[319345415,1710685840463,-444.7076028,0.00018999,2]
[319345416,1710685840473,-2341.79461688,0.00018999,2]
[319345417,1710685840483,-1331.51469167,0.00018999,2]
[319345418,1710685840492,-500.0,0.00018999,2]
[319345419,1710685840502,-500.0,0.00018999,2]
[319345420,1710685840511,-500.0,0.00018999,2]
[319345421,1710685840521,-500.0,0.00018999,2]
[319345422,1710685840530,-267.54607243,0.00018999,2]
[319345423,1710685840540,-642.73500001,0.00018999,2]
[319345424,1710685840550,-500.0,0.00018999,2]
[319345425,1710685840559,-334.343426,0.00018999,5]